Cogmind - Beta 16 @@@ ROGUE MODE // 2025.12.25 @ 07:27:34 Player: mm79 Result: Destroyed by as-63766 with Assembled Blade Performance ------------- Evolutions (0) 0 Regions Visited (2) 400 Robots Destroyed (17) 85 Value Destroyed (220) 220 Prototype IDs (0) 0 Alien Tech Used (0) 0 Bonus (0) 0 TOTAL SCORE: 705 Bonus ------- None Cogmind --------- Core Integrity 0/250 Matter 197/300 Energy 75/125 System Corruption 0% Temperature Cool (0) Movement Rolling (200) Ox8 Location -10/Mines Parts ------- > --- POWER (1) -------- Light Ion Engine > --- PROPULSION (2) --- Wheel > --- UTILITY (2) ------ Huge Storage Unit > --- WEAPON (2) ------- Particle Gun Light Assault Rifle > --- INVENTORY (25) --- Light Ion Engine Light Ion Engine Hover Unit Heat Sink Large Storage Unit Small Battery (100) Light Assault Rifle Light Assault Rifle Light Assault Rifle Light Assault Rifle Grenade Launcher Rocket Launcher Datajack Mining Laser Peak State ------------ > --- POWER ------------ Light Ion Engine > --- PROPULSION ------- Wheel Wheel > --- UTILITY ---------- Large Storage Unit Seismic Detector > --- WEAPON ----------- Particle Gun Light Assault Rifle > --- INVENTORY -------- Light Ion Engine Hover Unit Heat Sink Light Assault Rifle Light Assault Rifle Light Assault Rifle Light Assault Rifle Light Assault Rifle Grenade Launcher Mining Laser [Rating: 9] Favorites ----------- Power Light Ion Engine Engine Light Ion Engine Propulsion Wheel Wheel Wheel Utility Seismic Detector Device Seismic Detector Storage Huge Storage Unit Weapon Light Assault Rifle Energy Gun Particle Gun Ballistic Gun Light Assault Rifle Launcher Rocket Launcher Build | -11 -10 -10 ------- Run | Yrd Mat Min Slots Evolved . | . . . Power . | . . . Propulsion . | . . . Utility . | . . . Weapon . | . . . Parts Attached 19 | 8 8 3 Power 3 | 1 2 . Engine 3 | 1 2 . Core . | . . . Reactor . | . . . Propulsion 5 | 2 2 1 Treads . | . . . Leg . | . . . Wheel 5 | 2 2 1 Hover . | . . . Flight . | . . . Utility 5 | 2 3 . Device 1 | 1 . . Storage 4 | 1 3 . Processor . | . . . Hackware . | . . . Protection . | . . . Artifact . | . . . Weapon 6 | 3 1 2 Energy Gun 2 | 1 1 . Energy Cannon . | . . . Ballistic Gun 3 | 2 . 1 Ballistic Cannon . | . . . Launcher 1 | . . 1 Special Weapon . | . . . Impact Weapon . | . . . Slashing Weapon . | . . . Piercing Weapon . | . . . Special Melee Weapon . | . . . Unidentified Prototypes . | . . . Parts Lost 8 | . 4 4 Power 1 | . 1 . Propulsion 4 | . 2 2 Utility 1 | . . 1 Weapon 2 | . 1 1 Highest Loss Streak 4 | . 3 4 To Critical Strikes . | . . . Average Backups 11 | 2 12 15 Power 1 | . 2 2 Propulsion 2 | . 2 1 Utility 1 | . 1 3 Weapon 5 | 1 5 7 Tool/Special . | . . . Unused Backups 17 | . 5 12 Power 3 | . 1 2 Propulsion 5 | . 4 1 Utility 2 | . . 2 Weapon 6 | . . 6 Tool/Special 1 | . . 1 Average Slot Usage (%) 98 | . 98 90 Engine 13 | . 13 14 Wheel 26 | . 27 23 Device 13 | . 13 11 Storage 14 | . 14 14 Energy Gun 9 | . 9 11 Ballistic Gun 18 | . 18 11 Peak Build Rating 9 | 7 9 9 Average Rating 8 | 5 8 8 On Entrance 5 | . 7 9 Avg Prop Armor Cover (%) . | . . . Naked Turns . | . . . Heaviest Build 88 | 11 88 88 Greatest Support 26 | 26 26 20 Greatest Overweight (x) 28 | . 28 4 Average Overweight (x) 2 | . 2 4 Largest Inventory Capacity 25 | 8 25 25 Average Capacity 18 | 7 19 25 Most Carried 16 | 5 16 16 Average Carried 12 | 2 12 15 Final Capacity 25 | 8 25 25 Final Carried 15 | 5 15 14 Class Distribution -------------------- 68% | Scavenger-Mutant 31% | Mutant Dominant Class ---------------- Scavenger-Mutant | -10/Materials Scavenger-Mutant | -10/Mines Resources | -11 -10 -10 ----------- Run | Yrd Mat Min Matter Collected 446 | 242 204 . Remotely . | . . . Salvage Created 372 | 36 330 6 Parts 30 | 6 24 . Haulers Intercepted 1 | . 1 . Recyclers Shooed 2 | 2 . . Parts Field Recycled . | . . . Retrieved Matter . | . . . Parts Self-Destructed . | . . . Prevented . | . . . Parts Restored . | . . . Kills | -11 -10 -10 ------- Run | Yrd Mat Min Combat Hostiles Destroyed 14 | . 11 3 Guns 11 | . 11 . AOE 3 | . . 3 Classes Destroyed 8 | 1 6 1 Worker 1 | . 1 . Tunneler 2 | 2 . . Hauler 1 | . 1 . Operator 1 | . 1 . Watcher 1 | . 1 . Swarmer 9 | . 9 . Grunt 2 | . 2 . Assembled 3 | . . 3 Best Kill Streak 3 | 1 3 3 Combat Bots Only 3 | . 3 3 Max Kills in Single Turn 2 | 1 1 2 Gunslinging . | . . . Exploded 2 | . . 2 Melee . | . . . Uniques/NPCs Destroyed . | . . . Combat | -11 -10 -10 -------- Run | Yrd Mat Min Hostile Shots Fired 82 | . 64 18 Missed 24 | . 19 5 Hits 58 | . 45 13 Melee 2 | . . 2 Projectile 56 | . 45 11 Critical Strikes 1 | . 1 . Damage Taken 726 | . 480 246 Core 280 | . 124 156 Absorbed by Shields . | . . . Core Remaining (%) 100 | 100 . . Volleys Fired 56 | 7 46 3 Largest 2 | 2 2 1 Hottest 85 | 40 85 33 Shots Fired 101 | 14 84 3 Gun 98 | 14 84 . Cannon . | . . . Launcher 3 | . . 3 Special . | . . . Kinetic 93 | 14 79 . Thermal 5 | . 5 . Explosive 3 | . . 3 Electromagnetic . | . . . Robot Hit Streak 10 | 5 10 . Robot Miss Streak 3 | 1 3 . Penetration Max . | . . . Secondary Targets 1 | . 1 . Max Gunslinging Chain 1 | . 1 . Shots Hit Robots 60 | 11 49 . Core Hits 38 | 2 27 9 Critical Kills . | . . . Critical Parts Destroyed . | . . . Critical Strikes . | . . . Melee Attacks . | . . . Impact . | . . . Slashing . | . . . Piercing . | . . . Sneak Attacks . | . . . Combat Hostiles . | . . . Follow-up Attacks . | . . . Damage Inflicted 779 | 96 428 255 Guns 524 | 96 428 . Cannons . | . . . Explosions 255 | . . 255 Melee . | . . . Ramming . | . . . Kinetic 477 | 96 381 . Thermal 47 | . 47 . Explosive 255 | . . 255 Electromagnetic . | . . . Impact . | . . . Slashing . | . . . Piercing . | . . . Highest Corruption . | . . . Average Corruption . | . . . Corruption Purged . | . . . Corruption Blocked . | . . . Overload Shots . | . . . Overflow Damage 12 | . . 12 Projectiles . | . . . Explosions 12 | . . 12 Melee . | . . . Knockbacks . | . . . Impact . | . . . Kinetic . | . . . Secondary . | . . . Self-Inflicted Damage 37 | . . 37 Shots 2 | . . 2 Rammed . | . . . Targets Rammed . | . . . Kicked . | . . . Crushed . | . . . Highest Temperature 68 | . 68 44 Average Temperature 19 | . 18 26 Received Heat Transfer 240 | . 180 60 Siege Activations . | . . . Martial Activations . | . . . Shielding Activations . | . . . Robots Disrupted . | . . . Combat Hostiles . | . . . Robots Corrupted . | . . . Combat Hostiles . | . . . Parts Fried 4 | . 4 . Impact Corruptions . | . . . Robots Melted . | . . . Combat Hostiles . | . . . Parts Melted . | . . . Heat Transferred 111 | . 111 . Parts Sabotaged . | . . . Parts Stolen . | . . . Parts Stripped . | . . . Power Chain Reactions . | . . . Alert | -11 -10 -10 ------- Run | Yrd Mat Min Maximum Alert Level . | . . . Low Security (%) 100 | 100 100 100 Level 1 . | . . . Level 2 . | . . . Level 3 . | . . . Level 4 . | . . . Level 5 . | . . . High Security . | . . . Max Security . | . . . Peak Influence 115 | 5 115 11 Initial 5 | . . 5 Average 34 | . 40 2 Influence Increases 377 | 10 349 18 Destroy 0b10 Robot/C 220 | . 220 . Destroy 0b10 Robot/NC 30 | 10 20 . Destroy Leader 44 | . 44 . Trap Triggered on 0b10 20 | . 20 . Successful Hack 14 | . 14 . Destroy Structure 19 | . 1 18 Lose Combat Pursuer 30 | . 30 . Influence Decreases 374 | 10 334 30 Entered New Map 10 | . . 10 Time Decay 319 | 10 304 5 Lost Part 45 | . 30 15 Squads Dispatched . | . . . Investigation . | . . . Extermination . | . . . Reinforcement . | . . . Assault . | . . . Garrison . | . . . Intercept . | . . . Searches Triggered . | . . . Construction Impeded . | . . . Haulers Reinforced . | . . . Active Scanning Responses . | . . . Cargo Convoy Interrupts . | . . . Stealth | -11 -10 -10 --------- Run | Yrd Mat Min Distress Signals . | . . . Communications Jammed . | . . . Distress Signals . | . . . Times Spotted 25 | . 18 7 Peak Tracking Total 10 | . 3 10 Tactical Retreats 2 | . 2 . Traps | -11 -10 -10 ------- Run | Yrd Mat Min Traps Triggered 3 | . 3 . Indirectly . | . . . Trap Hack Attempts . | . . . Triggered . | . . . Disarmed . | . . . Reprogrammed 6 | . 6 . Reused 2 | . 2 . Traps Extracted . | . . . Installed . | . . . Triggered 2 | . 2 . Machines | -11 -10 -10 ---------- Run | Yrd Mat Min Machines Disabled . | . . . Max in Single Turn . | . . . Machines Repaired . | . . . Machines Dismantled . | . . . Machines Sabotaged . | . . . Overloaded Fab Kills . | . . . Hacking | -11 -10 -10 --------- Run | Yrd Mat Min Machines Accessed 6 | . 6 . Terminals 5 | . 5 . Fabricators . | . . . Repair Stations . | . . . Recycling Units 1 | . 1 . Scanalyzers . | . . . Garrison Access . | . . . Total Hacks 19 | . 19 . Successful 12 | . 12 . Failed 7 | . 7 . Catastrophic . | . . . Database Lockouts . | . . . Manual 10 | . 10 . Terminals 16 | . 16 . Fabricators . | . . . Repair Stations . | . . . Recycling Units 3 | . 3 . Scanalyzers . | . . . Garrison Access . | . . . Terminal Hacks 5 | . 5 . Record 2 | . 2 . Locate Traps 1 | . 1 . Reprogram Traps 1 | . 1 . Zone Layout 1 | . 1 . Fabricator Hacks . | . . . Repair Station Hacks . | . . . Recycling Unit Hacks 1 | . 1 . Retrieve Components 1 | . 1 . Scanalyzer . | . . . Garrison Access Hacks . | . . . Unauthorized Hacks 6 | . 6 . Terminals 5 | . 5 . Assimilate 1 | . 1 . Botnet 2 | . 2 . Operators 1 | . 1 . Skim 1 | . 1 . Fabricators . | . . . Repair Stations . | . . . Recycling Units 1 | . 1 . Reject 1 | . 1 . Scanalyzers . | . . . Garrison Access . | . . . Data Cores Recovered 1 | . 1 . Used . | . . . Hacking Detections 6 | . 6 . Full Trace Events . | . . . Feedback Events . | . . . Feedback Blocked . | . . . Robot Schematics Acquired . | . . . Robots Built . | . . . Authchips . | . . . Time . | . . . Total Robot Build Rating . | . . . Part Schematics Acquired . | . . . Parts Built . | . . . Authchips . | . . . Time . | . . . Total Part Build Rating . | . . . Part Studies Acquired . | . . . Parts Repaired . | . . . Time . | . . . Parts Recycled . | . . . Recycled Matter . | . . . Retrieved Matter . | . . . Retrieved Components 1 | . 1 . Parts Scanalyzed . | . . . Part Schematics Acquired . | . . . Parts Damaged . | . . . Bothacking | -11 -10 -10 ------------ Run | Yrd Mat Min Used RIF Installer . | . . . Robots Hacked . | . . . Non-combat . | . . . Combat . | . . . Robot Hacks Applied . | . . . Relay Couplers Released . | . . . Fabnet Peak Effective % . | . . . Robots Rewired . | . . . Allies Hacked . | . . . Hacks Repelled . | . . . Allies | -11 -10 -10 -------- Run | Yrd Mat Min Total Allies . | . . . Largest Group . | . . . Highest-Rated Group . | . . . Highest-Rated Ally . | . . . Total Orders . | . . . Ally Attacks . | . . . Total Damage . | . . . Kills . | . . . Allies Corrupted . | . . . Allies Melted . | . . . Intel | -11 -10 -10 ------- Run | Yrd Mat Min Active Infowar (turns) 889 | 5 839 45 Seismic 889 | 5 839 45 Robot Analysis Total . | . . . Derelict Logs Recovered . | . . . Drone Launches . | . . . Drone Recoveries . | . . . Exploration | -11 -10 -10 ------------- Run | Yrd Mat Min Turns Passed 1011 | 91 870 50 Spaces Moved 627 | 61 538 28 Core 2 | 1 1 . Treads . | . . . Legs . | . . . Wheels 625 | 60 537 28 Hover . | . . . Flight . | . . . Fastest Speed 50 | 50 90 140 Average Speed 117 | 91 119 140 Slowest Speed 1450 | 100 1450 140 Overloaded Moves . | . . . Propulsion Burnouts . | . . . Robots Hopped . | . . . Potential Cave-ins . | . . . Cave-ins Triggered . | . . . Exploration Rate (%) 27 | 4 64 13 Regions Visited 2 Branch Regions 1 Pre-discovered Areas . | . . . Known Exits Taken . | . . . Unknown Exits Taken 2 | 1 1 . Scrap Searched . | . . . Spaces Dug 10 | . . 10 Terrain Destroyed 25 | . . 25 Melee . | . . . Projectile . | . . . AOE 25 | . . 25 Terrain Rammed . | . . . Walls Destroyed . | . . . Machines Disabled . | . . . Actions | -11 -10 -10 --------- Run | Yrd Mat Min Total 812 | 80 696 36 Wait 70 | . 70 . Move 625 | 60 537 28 Hop . | . . . Pick Up 26 | 5 20 1 Fast Attach 12 | 7 5 . Attach 6 | . 4 2 Detach . | . . . Swap 8 | 1 5 2 Drop 9 | . 9 . Fire 56 | 7 46 3 Melee . | . . . Ram . | . . . Kick . | . . . Crush . | . . . Escape Stasis . | . . . Rewire . | . . . Trap . | . . . Miscellaneous . | . . . Route ------- -11/Scrapyard -10/Materials (discovered 4 exits: [*Mat x2] / [*Min x2]) -10/Mines History --------- Turn | Location | Event 9 | -11/Scrapyard | Discovered new exit (range 15) 92 | -11/Scrapyard | Entered Materials 260 | -10/Materials | Discovered new exit (range 12) 315 | -10/Materials | Build established: Mutant 341 | -10/Materials | Lost 3 parts (1p2n) 629 | -10/Materials | Build established: Scavenger-Mutant 673 | -10/Materials | Discovered new exit (range 8) 791 | -10/Materials | Discovered new exit (range 15) 892 | -10/Materials | Discovered new exit (range 8) 962 | -10/Materials | Entered Mines 976 | -10/Mines | Assembled infested the area 978 | -10/Mines | Received a Rocket Launcher from a helpful Derelict 1004 | -10/Mines | Core integrity fell below 50% 1009 | -10/Mines | Core integrity fell below 20% 1012 | -10/Mines | Destroyed by as-63766 with Assembled Blade Last Messages --------------- 00976_ ALERT: Infestation in the mines, dispatching Demolisher response squad. 00976_ O4-GK5(g): "Need to get rid of a swarm? Done. Need a big hole in the wall? Done." 00977_ O4-GK5(g): "Need a small hole in the wall? Leave that to the mining laser wimps, I say!" 00978_ O4-GK5(g): "Would you like a rocket launcher? I know I would if I were you, so I'm going to lend you mine." 00978_ O4-GK5(g) slips back into the shadows. 00981_ Acquired Rocket Launcher. 01002_ Wheel destroyed. 01004_ Destroyed Asb. Hover Unit. 01004_ as-66969 destroyed. 01005_ Wheel destroyed. 01007_ Seismic Detector destroyed. 01007_ Lgt. Assault Rifle destroyed. 01008_ as-69003 destroyed. 01008_ as-38598 destroyed. 01008_ as-65152 destroyed. Map ----- +----------------------------------------------------+ | | | | | | | | | | | | | | | | | | | | | | | ?????????????????????????????????????????????????? | | ?????????????????????????????????????????????????? | | ????########?????????????????????????????????????? | | ???## #?????????????????????????????????????? | | ??## #?????????????????????????????????????? | | ?## #?????????????????????????????????????? | | ## ##???????###???????????????????????????? | | # ####?????### ##??????????????????????????? | | ##???????## #??????????????????????????? | | ##??????### #??????????????????????????? | | ##?###### #??????????????????????????? | | ### #???????????????????????????? | | # #????????????????????????????? | | ## ########?????????????????????? | | ?## @ #?????????????????????? | | ??#### ##### a #????????????????????? | | ?????## ##??# #???????????????????? | | ??????# #???## #??????????????????? | | ??????## ### #???? #??????????????????? | | ???????####?## #???? #??????????????????? | | ?????????????# ? ##??????????????????? | | ?????????????# % #???????????????????? | | ????????????? ###### #???????????????????? | | ???????????? #???? ???????????????????? | | ??????????? ##???? ???????????????????? | | ??????????? ####????? a ??????????????????? | | ??????????###???????? ??????????????????? | | ????????????????????? a #?????????????????? | | ?????????????????????< ???????????????????? | | ??????????????????????? ?????????????????????? | | ?????????????????????????????????????????????????? | | ?????????????????????????????????????????????????? | | ?????????????????????????????????????????????????? | | ?????????????????????????????????????????????????? | | ?????????????????????????????????????????????????? | | ?????????????????????????????????????????????????? | | ?????????????????????????????????????????????????? | | ?????????????????????????????????????????????????? | | ?????????????????????????????????????????????????? | +----------------------------------------------------+ Best States ------------- Heat Dissipation 25 Energy Generation 10 Energy Capacity 125 Matter Stores 300 Matter Capacity 300 Sight Range 16 Terrain Scan Density 10 Evasion (%) 42 Item Schematics ----------------- None Robot Schematics ------------------ None Fabricated ------------ Nothing Repaired ---------- Nothing Studied --------- None Alien Tech Used ----------------- None Achievements -------------- None Challenges ------------ None Game ------ Seed PhysicsLegMeganuke Manual? 0 Play Time 00:12:18 Cumulative 13.9 hours Start 2025.12.25 @ 07:15:19 End 2025.12.25 @ 07:27:34 Sessions 1 Manual Loads 0 Difficulty Rogue Special Mode None Game No. 10 Rogue 10 Adventurer 0 Explorer 0 Win Type - Total 0 Types 0/0/0/0/0/0/0/0/0/0 Lore% 10 Gallery% 25 Achievement% 24 Wizard Run 0 Options --------- Layout 1 ASCII 0 Keyboard 0 Movement Mouse Keybinds 0 Fullscreen 1 Font 20/SmallcapsGlow Map View 54x42 Zoom Use 0% Tactical HUD 1 Map Filters NONE Filters NONE Steam 0 RUN: 77a9d168-00b2-44a2-9b09-7a1dac0f5e98